bitfinex/quotes_BTCUSD_20250114
["timestamp","ask_amount","ask_price","bid_price","bid_amount"]
[1736861727997,0.00014889,96753.0,96732.0,0.10422692]
[1736861728203,0.00014889,96753.0,96726.0,0.00103371]
[1736861728204,0.00014889,96753.0,96721.0,0.083]
[1736861728851,0.00014889,96753.0,96732.0,0.10422692]
[1736861729064,0.00014889,96753.0,96733.0,0.0164064]
[1736861729280,0.00014889,96753.0,96734.0,0.10422692]
[1736861729499,0.00014889,96753.0,96721.0,0.083]
[1736861729709,0.10422692,96752.0,96708.0,0.0495]
[1736861729924,0.206718,96750.0,96709.0,0.10422692]
[1736861730141,0.15,96739.0,96687.0,0.0495]
[1736861730398,0.15,96737.0,96690.0,0.28338785]
[1736861730611,0.15,96735.0,96690.0,0.10422692]
[1736861730826,0.356779,96722.0,96675.0,0.0008539]
[1736861731046,0.15,96719.0,96675.0,0.10508082]
[1736861731266,0.15,96717.0,96676.0,0.01050808]
[1736861731477,0.15,96715.0,96676.0,0.01050808]
[1736861731685,0.15,96713.0,96676.0,0.01050808]
[1736861731887,0.00322752,96714.0,96677.0,0.10526124]
[1736861732098,0.00453301,96712.0,96677.0,0.10422692]
[1736861732299,0.28338785,96700.0,96676.0,0.00050052]
[1736861732510,0.25552001,96699.0,96676.0,0.00050052]
[1736861732741,0.25988919,96699.0,96676.0,0.00050052]
[1736861732966,0.15,96689.0,96676.0,0.00050052]
[1736861733181,0.00436918,96699.0,96676.0,0.00050052]
[1736861733390,0.00434844,96688.0,96676.0,0.00050052]
[1736861733608,0.00129298,96687.0,96676.0,0.00050052]
[1736861733824,0.01218399,96686.0,96676.0,0.00050052]
[1736861734030,0.00129321,96685.0,96676.0,0.00050052]
[1736861734238,0.00562883,96685.0,96676.0,0.00050052]
[1736861734653,0.15,96681.0,96676.0,0.00050052]
[1736861734857,0.00129321,96680.0,96676.0,0.00050052]
[1736861735060,0.00562129,96680.0,96676.0,0.00050052]
[1736861735265,0.15,96678.0,96676.0,0.00050052]
[1736861735478,0.15,96677.0,96676.0,0.00050052]
[1736861735749,0.00428934,96677.0,96676.0,0.00050052]
[1736861736162,0.01632,96683.0,96676.0,0.00050052]
[1736861736279,0.00431579,96677.0,96676.0,0.00050052]
[1736861736478,0.01632,96683.0,96676.0,0.00050052]
[1736861736675,0.00431579,96677.0,96676.0,0.00050052]
[1736861736934,0.00129301,96682.0,96676.0,0.00050052]
[1736861737081,0.00430918,96677.0,96676.0,0.00050052]
[1736861737283,0.01390816,96677.0,96676.0,0.00050052]
[1736861737508,0.01821734,96677.0,96676.0,0.00050052]
[1736861738133,0.27244426,96677.0,96676.0,0.00050052]
[1736861738331,0.27115101,96677.0,96676.0,0.00050052]
[1736861738512,0.32352617,96677.0,96676.0,0.00050052]
[1736861738930,0.00430918,96677.0,96676.0,0.00050052]
[1736861739127,0.01632,96690.0,96676.0,0.00050052]
[1736861739335,0.00433842,96689.0,96676.0,0.00050052]
[1736861739535,0.10551998,96688.0,96676.0,0.00050052]
[1736861739736,0.15433465,96687.0,96676.0,0.00050052]
[1736861740003,0.10856157,96687.0,96676.0,0.00050052]
[1736861740151,0.00433465,96687.0,96677.0,0.10422692]
[1736861740341,0.01622213,96716.0,96679.0,0.0479]
[1736861740538,0.206795,96714.0,96679.0,0.0479]
[1736861740745,0.12183973,96715.0,96676.0,0.00050052]
[1736861740746,0.38761477,96710.0,96676.0,0.00050052]
[1736861740946,0.15,96705.0,96676.0,0.00050052]
[1736861741144,0.02209426,96704.0,96677.0,0.10422692]
[1736861741349,0.02080112,96704.0,96677.0,0.10422692]
[1736861741573,0.10551969,96703.0,96676.0,0.00050052]
[1736861741774,0.10871371,96702.0,96676.0,0.00050052]
[1736861741986,0.01392564,96701.0,96676.0,0.00050052]
[1736861742181,0.15,96699.0,96676.0,0.00050052]
[1736861742401,0.15,96695.0,96676.0,0.00050052]
[1736861742607,0.15,96692.0,96676.0,0.00050052]
[1736861742805,0.10552013,96691.0,96676.0,0.00020052]
[1736861743074,0.00129311,96690.0,96677.0,0.10422692]
[1736861743243,0.0207615,96691.0,96676.0,0.00020052]
[1736861743446,0.00446795,96689.0,96676.0,0.00020052]
[1736861743686,0.15,96687.0,96676.0,0.00020052]
[1736861743863,0.10551998,96688.0,96676.0,0.00020052]
[1736861743864,0.00446443,96688.0,96676.0,0.00020052]
[1736861744064,0.01632,96691.0,96676.0,0.00020052]
[1736861744065,0.00575388,96686.0,96676.0,0.00020052]
[1736861744268,0.10422692,96685.0,96676.0,0.00020052]
[1736861744436,0.1512932,96684.0,96676.0,0.00020052]
[1736861744643,0.15,96682.0,96676.0,0.00020052]
[1736861744843,0.15,96680.0,96676.0,0.00020052]
[1736861745046,0.15,96678.0,96676.0,0.00020052]
[1736861745220,0.25552031,96677.0,96676.0,0.00020052]
[1736861745421,0.25867061,96677.0,96676.0,0.00020052]
[1736861745886,0.28167061,96677.0,96676.0,0.00020052]
[1736861746086,0.30994835,96677.0,96676.0,0.00105702]
[1736861746239,0.42816875,96677.0,96676.0,0.00105702]
[1736861746666,0.25867061,96677.0,96676.0,0.00105702]
[1736861747143,0.28167061,96677.0,96676.0,0.00105702]
[1736861747344,0.30994835,96677.0,96676.0,0.00105702]
[1736861747645,0.30994835,96677.0,96635.0,0.04526482]
[1736861747646,0.15,96676.0,96635.0,0.04526482]
[1736861747871,0.12184028,96675.0,96636.0,0.10422692]
[1736861748111,0.0276284,96674.0,96635.0,0.0457641]
[1736861748294,0.15,96669.0,96635.0,0.0457641]
[1736861748496,0.15,96667.0,96635.0,0.0457641]
[1736861748690,0.10422692,96666.0,96635.0,0.0457641]
[1736861748895,0.00129347,96665.0,96635.0,0.0457641]
[1736861749103,0.15,96663.0,96635.0,0.0457641]
[1736861749261,0.10422692,96664.0,96635.0,0.0457641]
[1736861749262,0.15,96661.0,96635.0,0.0457641]
[1736861749612,0.15,96659.0,96635.0,0.00049928]
[1736861749753,0.15,96657.0,96635.0,0.00049928]
[1736861749955,0.15,96655.0,96635.0,0.00049928]
[1736861750249,0.15,96653.0,96635.0,0.00049928]
[1736861750374,0.15,96651.0,96635.0,0.00049928]
[1736861750580,0.00527191,96650.0,96635.0,0.00049928]
[1736861750783,0.00129356,96667.0,96635.0,0.00049928]
[1736861751010,0.00531729,96666.0,96636.0,0.10422692]
[1736861751189,0.01622683,96682.0,96637.0,0.10422692]
[1736861751190,0.0137866,96665.0,96637.0,0.10422692]
[1736861751391,0.15,96663.0,96635.0,0.00049928]
[1736861751614,0.15,96661.0,96635.0,0.00049928]
[1736861751881,0.15,96659.0,96635.0,0.00049928]
[1736861752076,0.15,96657.0,96635.0,0.00049928]
[1736861752281,0.15,96655.0,96635.0,0.00049928]
[1736861752736,0.00655845,96654.0,96635.0,0.00049928]
[1736861753178,0.03701285,96654.0,96635.0,0.00049928]
[1736861753379,0.15,96652.0,96635.0,0.00049928]
[1736861753770,0.02158042,96651.0,96636.0,0.10422692]
[1736861754219,0.00526042,96651.0,96636.0,0.10422692]
[1736861754613,0.00129337,96650.0,96636.0,0.10422692]
[1736861754816,0.00536331,96649.0,96636.0,0.10422692]
[1736861755026,0.0012934,96648.0,96635.0,0.00049928]
[1736861755376,0.00536277,96647.0,96635.0,0.00049928]
[1736861755580,0.00129351,96646.0,96635.0,0.00049928]
[1736861755803,0.00538461,96645.0,96635.0,0.00049928]
[1736861756030,0.00129357,96644.0,96635.0,0.00049928]
[1736861756186,0.00538461,96645.0,96635.0,0.1047262]
[1736861756392,0.00921143,96673.0,96636.0,0.10422692]
[1736861756597,0.01761341,96672.0,96640.0,0.28338785]
[1736861756807,0.28338785,96670.0,96635.0,0.00049928]
[1736861757015,0.15,96668.0,96635.0,0.00049928]
[1736861757218,0.15,96666.0,96635.0,0.00049928]
[1736861757442,0.15,96664.0,96635.0,0.00049928]
[1736861757654,0.15,96662.0,96635.0,0.00049928]
[1736861757862,0.15,96660.0,96635.0,0.00049928]
[1736861758065,0.00129349,96659.0,96635.0,0.00049928]
[1736861758267,0.15,96660.0,96636.0,0.10526163]
[1736861758470,0.00599991,96658.0,96637.0,0.00103468]
[1736861758685,0.15,96660.0,96638.0,0.10422692]
[1736861758891,0.00599991,96657.0,96638.0,0.10422692]
[1736861759118,0.0158,96658.0,96638.0,0.10422692]
[1736861760208,0.0158,96658.0,96635.0,0.00049928]
[1736861760209,0.00129349,96657.0,96635.0,0.00049928]
[1736861760414,0.00599991,96656.0,96635.0,0.00049928]
[1736861760621,0.00129348,96655.0,96636.0,0.10422692]
[1736861760846,0.00129348,96654.0,96636.0,0.10422692]
[1736861761062,0.00129348,96654.0,96621.0,0.04539928]
[1736861761288,0.00599991,96653.0,96622.0,0.10422692]
[1736861761496,0.0158,96658.0,96622.0,0.10526169]
[1736861761702,0.0158,96658.0,96623.0,0.00103475]
[1736861761909,0.0158,96658.0,96630.0,0.28338785]
[1736861762115,0.0158,96658.0,96621.0,0.045493]
[1736861762116,0.0158,96658.0,96631.0,0.10422692]
[1736861762373,0.15,96656.0,96631.0,0.00763028]
[1736861762609,0.15,96654.0,96631.0,0.00763028]
[1736861762810,0.10552051,96653.0,96631.0,0.00763028]
[1736861763115,0.15,96652.0,96631.0,0.00763028]
[1736861763364,0.023,96649.0,96631.0,0.00763028]
[1736861763529,0.15,96647.0,96631.0,0.00763028]
[1736861763672,0.023,96644.0,96631.0,0.00763028]
[1736861763878,0.15,96642.0,96631.0,0.00763028]
[1736861764081,0.38338785,96670.0,96621.0,9.372e-05]
[1736861764082,0.15,96640.0,96621.0,9.372e-05]
[1736861764490,0.00129366,96639.0,96621.0,9.372e-05]
[1736861764692,0.00723539,96639.0,96621.0,9.372e-05]
[1736861765188,0.00594173,96639.0,96621.0,9.372e-05]
[1736861765389,0.00594173,96639.0,96631.0,0.0008571]
[1736861765596,0.00129367,96654.0,96631.0,0.0008571]
[1736861765815,0.0158,96653.0,96631.0,0.0008571]
[1736861766023,0.00129347,96652.0,96632.0,0.10422692]
[1736861766233,0.00129344,96651.0,96632.0,0.10422692]
[1736861766444,0.00129344,96650.0,96632.0,0.10422692]
[1736861766652,0.00729183,96650.0,96632.0,0.10422692]
[1736861766861,0.0158,96651.0,96633.0,0.01154315]
[1736861767094,0.43139362,96696.0,96633.0,0.01154315]
[1736861767095,0.00598532,96649.0,96642.0,0.1974]
[1736861767298,0.09948,96703.0,96655.0,0.1]
[1736861767299,0.0158,96681.0,96655.0,0.1]
[1736861767506,0.0158,96681.0,96660.0,0.28338785]
[1736861767722,0.09948,96703.0,96670.0,0.28338785]
[1736861767922,0.02106733,96704.0,96676.0,0.1]
[1736861768127,0.08982385,96728.0,96672.0,0.206885]
[1736861768128,0.0158,96708.0,96683.0,0.1773]
[1736861768313,0.0158,96708.0,96683.0,0.38256098]
[1736861768562,0.02106733,96726.0,96694.0,0.206836]
[1736861768764,0.02106733,96726.0,96698.0,0.28338785]
[1736861768983,0.02106733,96726.0,96702.0,0.10422692]
[1736861769182,0.0158,96731.0,96710.0,0.28338785]
[1736861769386,0.08982385,96752.0,96720.0,0.28338785]
[1736861769600,0.08982385,96752.0,96708.0,0.1]
[1736861769601,0.0158,96750.0,96730.0,0.28338785]
[1736861769803,0.00486628,96741.0,96731.0,0.10526061]
[1736861770008,0.09997683,96742.0,96732.0,0.10422692]
[1736861770464,0.09997683,96742.0,96733.0,0.25103363]
[1736861770465,0.00049683,96742.0,96733.0,0.25103363]
[1736861770637,0.00049683,96742.0,96735.0,0.35675]
[1736861770842,0.00049683,96742.0,96738.0,0.1]
[1736861771067,0.00049683,96742.0,96740.0,0.20422692]
[1736861771288,0.00179907,96774.0,96751.0,0.1]
[1736861771497,0.00194811,96774.0,96755.0,0.1]
[1736861771707,0.00194811,96774.0,96756.0,0.10422692]
[1736861771934,0.00194811,96774.0,96757.0,0.0105084]
[1736861772139,0.00194811,96774.0,96758.0,0.10422692]
[1736861772347,0.00194811,96774.0,96760.0,0.28338785]
[1736861772572,0.00194811,96774.0,96761.0,0.10526023]
[1736861772780,0.00194811,96774.0,96761.0,0.10422692]
[1736861773598,0.00194811,96774.0,96761.0,0.15162692]
[1736861774154,0.00194811,96774.0,96762.0,0.20772524]
[1736861774363,0.00194811,96774.0,96773.0,0.20422692]
[1736861774567,0.00194811,96774.0,96773.0,0.10422692]
[1736861775185,0.00194811,96774.0,96773.0,0.20422692]
[1736861775399,0.00194811,96774.0,96773.0,0.20525997]
[1736861775808,0.00194811,96774.0,96773.0,0.10422692]
[1736861776019,0.00194811,96774.0,96773.0,0.10526004]
[1736861776154,0.00194811,96774.0,96773.0,0.10422692]
[1736861776571,0.00194811,96774.0,96773.0,0.2052601]
[1736861776778,0.00194811,96774.0,96773.0,0.10422692]
[1736861777405,0.00194811,96774.0,96747.0,0.0756]
[1736861777620,0.00194811,96774.0,96762.0,0.10422692]
[1736861778023,0.00194811,96774.0,96763.0,0.00103334]
[1736861778272,0.00194811,96774.0,96761.0,0.1]
[1736861778631,0.10551874,96773.0,96761.0,0.1]
[1736861779182,0.023,96772.0,96761.0,0.1]
[1736861779324,0.023,96770.0,96761.0,0.1]
[1736861779589,0.00194811,96774.0,96761.0,0.1]
[1736861779760,0.00194811,96774.0,96762.0,0.10422692]
[1736861780193,0.00194811,96774.0,96763.0,0.00103326]
[1736861780585,0.00194811,96774.0,96764.0,0.10422692]
[1736861780782,0.00194811,96774.0,96761.0,0.1]
[1736861780992,0.10551863,96773.0,96761.0,0.1]
[1736861781192,0.00194811,96774.0,96761.0,0.1]
[1736861781626,0.00129188,96773.0,96761.0,0.1]
[1736861781826,0.10422692,96772.0,96761.0,0.1]
[1736861782074,0.023,96770.0,96761.0,0.1]
[1736861782277,0.173,96759.0,96700.0,0.0755]
[1736861782470,0.173,96749.0,96701.0,0.10422692]
[1736861782718,0.173,96747.0,96701.0,0.10422692]
[1736861782883,0.15,96745.0,96701.0,0.10422692]
[1736861783093,0.15,96743.0,96702.0,0.01797269]
[1736861783301,0.01576,96742.0,96703.0,0.10422692]
[1736861783530,0.00129235,96741.0,96704.0,0.00103388]
[1736861783709,0.01576,96742.0,96710.0,0.1]
[1736861783909,0.10551927,96741.0,96710.0,0.1]
[1736861784120,0.01576,96742.0,96711.0,0.10526089]
[1736861784321,0.01576,96742.0,96711.0,0.10575772]
[1736861784522,0.00129227,96741.0,96711.0,0.10472375]
[1736861784687,0.0757,96787.0,96730.0,0.28338785]
[1736861784887,0.01576,96770.0,96731.0,0.10526056]
[1736861785095,0.01576,96770.0,96740.0,0.28338785]
[1736861785293,0.01576,96770.0,96750.0,0.28338785]
[1736861785501,0.01576,96770.0,96751.0,0.10526029]
[1736861785761,0.01576,96770.0,96752.0,0.15]
[1736861786005,0.01576,96770.0,96753.0,0.10422692]
[1736861786629,0.01590904,96770.0,96753.0,0.10422692]
[1736861787814,0.00014904,96770.0,96755.0,0.023]
[1736861788000,0.00014904,96770.0,96762.0,0.10422692]
[1736861788200,0.00014904,96770.0,96761.0,0.0468]
[1736861788201,0.00014904,96770.0,96769.0,0.10422692]
[1736861788403,0.00014904,96770.0,96769.0,0.25525997]
[1736861788735,0.00014904,96770.0,96769.0,0.25422692]
[1736861789221,0.00014904,96770.0,96769.0,0.10422692]
[1736861791042,0.00014904,96770.0,96761.0,0.0468]
[1736861791240,0.00014904,96770.0,96747.0,0.004139]
[1736861791440,0.00014904,96770.0,96748.0,0.10422692]
[1736861791862,0.00014904,96770.0,96736.0,0.0478]
[1736861792069,0.00014904,96770.0,96743.0,0.10422692]
[1736861792070,0.00129192,96769.0,96743.0,0.10422692]
[1736861792501,0.00129193,96768.0,96743.0,0.10422692]
[1736861792899,0.00014904,96770.0,96744.0,0.15103345]
[1736861793106,0.00014904,96770.0,96751.0,0.15]
[1736861793283,0.00014904,96770.0,96753.0,0.15]
[1736861793489,0.00014904,96770.0,96754.0,0.10422692]
[1736861794010,0.00014904,96770.0,96755.0,0.00103336]
[1736861794208,0.00014904,96770.0,96756.0,0.10422692]
[1736861795414,0.00014904,96770.0,96742.0,0.00188948]
[1736861795415,0.00014904,96770.0,96757.0,0.10422692]
[1736861795633,0.00014904,96770.0,96758.0,0.01042269]
[1736861795842,0.00014904,96770.0,96759.0,0.10422692]
[1736861796271,0.00014904,96770.0,96742.0,0.0008561]
[1736861796477,0.00014904,96770.0,96743.0,0.10422692]
[1736861797688,0.00014904,96770.0,96744.0,0.00103352]
[1736861797904,0.00014904,96770.0,96745.0,0.10422692]
[1736861798679,0.00014904,96770.0,96746.0,0.00103346]
[1736861798907,0.00014904,96770.0,96747.0,0.10422692]
[1736861799107,0.00014904,96770.0,96748.0,0.15103346]
[1736861799471,0.00014904,96770.0,96742.0,0.0008561]
[1736861799643,0.25551866,96769.0,96742.0,0.0008561]
[1736861799803,0.05563746,96768.0,96742.0,0.0008561]
[1736861800144,0.15,96766.0,96742.0,0.0008561]
[1736861800319,0.15,96764.0,96742.0,0.0008561]
[1736861800522,0.0207597,96766.0,96742.0,0.0008561]
[1736861800523,0.15,96762.0,96742.0,0.0008561]
[1736861800704,0.173,96759.0,96742.0,0.0008561]
[1736861800908,0.15,96749.0,96742.0,0.0008561]
[1736861801087,0.023,96746.0,96742.0,0.0008561]
[1736861801293,0.15,96744.0,96742.0,0.0008561]
[1736861801492,0.27851932,96743.0,96742.0,0.0008561]
[1736861801697,0.173,96742.0,96710.0,0.1]
[1736861801952,0.15,96729.0,96710.0,0.1]
[1736861802157,0.15,96727.0,96710.0,0.1]
[1736861802394,0.12047942,96726.0,96710.0,0.1]
[1736861802603,0.15,96725.0,96710.0,0.1]
[1736861802823,0.023,96722.0,96710.0,0.1]
[1736861803055,0.34455247,96721.0,96710.0,0.1]
[1736861803256,0.34455247,96721.0,96720.0,0.06049683]
[1736861804069,0.27722692,96721.0,96720.0,0.06049683]
[1736861805298,0.25422692,96721.0,96720.0,0.06049683]
[1736861806013,0.15,96721.0,96720.0,0.06049683]
[1736861806247,0.16496,96721.0,96720.0,0.06049683]
[1736861806592,0.01496,96721.0,96720.0,0.06049683]
[1736861807016,0.11918692,96721.0,96720.0,0.06049683]
[1736861807226,0.13110561,96721.0,96720.0,0.06049683]
[1736861807450,0.30410561,96721.0,96720.0,0.06049683]
[1736861807650,0.30410561,96721.0,96710.0,0.1]
[1736861807651,0.173,96720.0,96710.0,0.1]
[1736861807855,0.15,96717.0,96710.0,0.1]
[1736861808072,0.023,96712.0,96710.0,0.1]
[1736861808272,0.26221007,96711.0,96710.0,0.1]
[1736861808475,0.36643699,96711.0,96710.0,0.1]
[1736861808682,0.56643699,96711.0,96710.0,0.1]
[1736861808890,0.15,96689.0,96651.0,0.1251]
[1736861809096,0.15,96687.0,96652.0,0.10422692]
[1736861809304,0.15,96687.0,96653.0,0.02405274]
[1736861809531,0.49019085,96710.0,96654.0,0.10422692]
[1736861809732,0.00129305,96707.0,96655.0,0.15103435]
[1736861809934,0.15,96705.0,96656.0,0.10422692]
[1736861810112,0.15,96703.0,96657.0,0.00103444]
[1736861810312,0.15,96701.0,96658.0,0.11646749]
[1736861810524,0.12964961,96702.0,96659.0,0.00103432]
[1736861810525,0.15,96699.0,96659.0,0.00103432]
[1736861810810,0.15,96699.0,96660.0,0.10526124]
[1736861811014,0.0012929,96698.0,96660.0,0.10422692]
[1736861811271,0.10422692,96697.0,96653.0,0.00103432]
[1736861811457,0.28338785,96680.0,96651.0,0.1251]
[1736861811610,0.10552011,96679.0,96651.0,0.1251]
[1736861812385,0.15,96678.0,96651.0,0.1251]
[1736861812588,0.10552022,96677.0,96651.0,0.1251]
[1736861813457,0.15,96676.0,96651.0,0.1251]
[1736861813809,0.15,96674.0,96651.0,0.12605002]
[1736861814431,0.15,96674.0,96651.0,0.23027694]
[1736861814432,0.01496,96673.0,96651.0,0.23027694]
[1736861814604,0.01625314,96673.0,96651.0,0.23027694]
[1736861814910,0.01496,96672.0,96651.0,0.23027694]
[1736861815678,0.02429314,96688.0,96651.0,0.23027694]
[1736861815875,0.173,96686.0,96651.0,0.25347573]
[1736861816098,0.023,96684.0,96651.0,0.25347573]
[1736861816302,0.173,96682.0,96651.0,0.25347573]
[1736861816573,0.00985397,96696.0,96651.0,0.25347573]
[1736861816574,0.1,96724.0,96653.0,0.15]
[1736861816740,0.02117104,96712.0,96670.0,0.28338785]
[1736861816897,0.0918785,96728.0,96653.0,0.15]
[1736861816898,0.29834785,96720.0,96671.0,0.00103419]
[1736861817097,0.00129275,96719.0,96661.0,0.15]
[1736861817325,0.10551967,96719.0,96672.0,0.10422692]
[1736861817527,0.15,96718.0,96672.0,0.10422692]
[1736861817722,0.16318865,96717.0,96673.0,0.01042269]
[1736861818048,0.16318865,96717.0,96674.0,0.10422692]
[1736861818049,0.03744,96716.0,96674.0,0.10422692]
[1736861818281,0.15,96709.0,96662.0,0.0010342]
[1736861818494,0.15,96707.0,96663.0,0.10422692]
[1736861818701,0.15,96707.0,96664.0,0.0010343]
[1736861818870,0.15,96707.0,96665.0,0.10422692]
[1736861818871,0.00129275,96706.0,96665.0,0.10422692]
[1736861819137,0.173,96704.0,96665.0,0.10422692]
[1736861819342,0.00129288,96703.0,96665.0,0.10422692]
[1736861819556,0.00129288,96703.0,96666.0,0.00103421]
[1736861819773,0.00129288,96703.0,96667.0,0.10526113]
[1736861819992,0.01444,96705.0,96668.0,0.00103421]
[1736861820196,0.01444,96704.0,96670.0,0.28338785]
[1736861820393,0.00179824,96721.0,96672.0,0.206885]
[1736861820602,0.10551965,96720.0,96673.0,0.10526102]
[1736861820810,0.01444,96720.0,96681.0,0.15]
[1736861821019,0.01444,96720.0,96690.0,0.28338785]
[1736861821195,0.00179824,96721.0,96701.0,0.0778]
[1736861821621,0.00129255,96720.0,96701.0,0.0778]
[1736861821776,0.02429255,96720.0,96701.0,0.0778]
[1736861821974,0.00179824,96721.0,96701.0,0.0778]
[1736861822183,0.00129262,96719.0,96701.0,0.0778]
[1736861822381,0.023,96717.0,96701.0,0.0778]
[1736861822586,0.023,96715.0,96691.0,0.0473]
[1736861822791,0.15,96713.0,96691.0,0.0473]
[1736861822945,0.00129266,96712.0,96691.0,0.0473]
[1736861823149,0.023,96709.0,96691.0,0.0473]
[1736861823372,0.173,96707.0,96682.0,0.0778]
[1736861823614,0.023,96698.0,96668.0,0.0473]
[1736861823817,0.173,96696.0,96668.0,0.0473]
[1736861824128,0.173,96694.0,96668.0,0.0473]
[1736861824312,0.02067129,96696.0,96668.0,0.0473]
[1736861824313,0.173,96692.0,96668.0,0.0473]
[1736861824518,0.45638785,96690.0,96664.0,0.0778]
[1736861824719,0.173,96688.0,96647.0,0.0473]
[1736861824923,0.023,96685.0,96647.0,0.0473]
[1736861825149,0.023,96678.0,96647.0,0.0473]
[1736861825353,0.173,96676.0,96647.0,0.0473]
[1736861825552,0.02076038,96672.0,96647.0,0.0473]
[1736861825758,0.12852022,96671.0,96651.0,0.00095002]
[1736861825964,0.15,96669.0,96651.0,0.00095002]
[1736861826160,0.023,96666.0,96651.0,0.00095002]
[1736861826368,0.00129331,96665.0,96651.0,0.00095002]
[1736861826565,0.20085202,96664.0,96651.0,0.00095002]
[1736861826808,0.173,96662.0,96651.0,0.00095002]
[1736861826984,0.173,96660.0,96651.0,0.00095002]
[1736861827190,0.023,96658.0,96651.0,0.00095002]
[1736861827413,0.173,96656.0,96651.0,0.00095002]
[1736861827808,0.00129345,96655.0,96651.0,0.00095002]
[1736861827991,0.15,96656.0,96651.0,0.00095002]
[1736861828583,0.00965455,96676.0,96651.0,0.00095002]
[1736861828757,0.01444,96661.0,96651.0,0.00095002]
[1736861829753,0.0012932,96660.0,96651.0,0.00095002]
[1736861829947,0.01444,96661.0,96651.0,0.00095002]
[1736861830293,0.01444,96701.0,96654.0,0.206923]
[1736861830492,0.13781776,96717.0,96670.0,0.28338785]
[1736861830726,0.01444,96711.0,96681.0,0.1251]
[1736861830978,0.0918785,96717.0,96690.0,0.28338785]
[1736861831119,0.0918785,96717.0,96685.0,0.10422692]
[1736861831120,0.0918785,96717.0,96700.0,0.28338785]
[1736861831337,0.0918785,96717.0,96702.0,0.0473]
[1736861831540,0.0918785,96717.0,96703.0,0.10422692]
[1736861831722,0.01444,96730.0,96702.0,0.0473]
[1736861831922,0.01444,96730.0,96703.0,0.10526084]
[1736861832233,0.00229527,96710.0,96703.0,0.10422692]
[1736861832435,0.00229527,96710.0,96702.0,0.0473]
[1736861835071,0.00129263,96709.0,96702.0,0.0473]
[1736861835696,0.00229527,96710.0,96702.0,0.0473]
[1736861835697,0.00229527,96710.0,96703.0,0.10526103]
[1736861835904,0.0918785,96764.0,96707.0,0.15]
[1736861836080,0.01444,96762.0,96715.0,0.15]
[1736861836360,0.00129201,96762.0,96720.0,0.10422692]
[1736861836543,0.01444,96768.0,96720.0,0.10422692]
[1736861836544,0.00129201,96761.0,96720.0,0.10422692]
[1736861837525,0.01444,96741.0,96714.0,0.046]
[1736861837732,0.00129235,96740.0,96714.0,0.046]
[1736861837917,0.01444,96741.0,96714.0,0.046]
[1736861838042,0.00129239,96740.0,96714.0,0.046]
[1736861838567,0.00129234,96740.0,96714.0,0.046]
[1736861838766,0.01444,96729.0,96714.0,0.046]
[1736861839539,0.01444,96729.0,96703.0,9.372e-05]
[1736861839540,0.00129234,96728.0,96703.0,9.372e-05]
[1736861839715,0.00129239,96728.0,96703.0,9.372e-05]
[1736861840260,0.15,96720.0,96703.0,9.372e-05]
[1736861840464,0.17560252,96719.0,96703.0,9.372e-05]
[1736861840666,0.023,96716.0,96703.0,9.372e-05]
[1736861840866,0.173,96714.0,96703.0,9.372e-05]
[1736861841079,0.173,96712.0,96703.0,9.372e-05]
[1736861841297,0.173,96710.0,96703.0,9.372e-05]
[1736861841488,0.04668097,96719.0,96703.0,9.372e-05]
[1736861841489,0.173,96708.0,96703.0,9.372e-05]
[1736861841883,0.15,96708.0,96703.0,9.372e-05]
[1736861842297,0.00179824,96721.0,96703.0,9.372e-05]
[1736861842502,0.00179824,96721.0,96711.0,0.0825]
[1736861842707,0.00179824,96721.0,96714.0,0.15]
[1736861842913,0.18375701,96751.0,96717.0,0.15]
[1736861843118,0.0918785,96745.0,96730.0,0.28338785]
[1736861843289,0.0918785,96745.0,96731.0,0.10422692]
[1736861843532,0.0918785,96745.0,96733.0,0.1285]
[1736861843743,0.0918785,96745.0,96741.0,0.15]
[1736861843744,0.07817142,96745.0,96741.0,0.15]
[1736861843917,0.08454703,96747.0,96746.0,0.1]
[1736861844150,0.14020404,96750.0,96749.0,0.1]
[1736861844352,0.09227216,96782.0,96752.0,0.1]
[1736861844555,0.09227216,96782.0,96760.0,0.28338785]
[1736861844757,0.09227216,96782.0,96761.0,0.10526013]
[1736861844935,0.00194644,96770.0,96761.0,0.10526013]
[1736861845547,0.00194644,96770.0,96761.0,0.10422692]
[1736861845921,0.00194644,96770.0,96762.0,0.00103325]
[1736861846124,0.00194644,96770.0,96766.0,0.15]
[1736861846289,0.00194644,96770.0,96769.0,0.25422692]
[1736861846492,0.00194644,96770.0,96769.0,0.46090392]
[1736861846690,0.00194644,96770.0,96769.0,0.25422692]
[1736861847101,0.00194644,96770.0,96769.0,0.35422692]
[1736861847293,0.00194644,96770.0,96769.0,0.43672692]
[1736861848436,0.00194644,96770.0,96769.0,0.33672692]
[1736861849046,0.00194644,96770.0,96769.0,0.43672692]
[1736861849251,0.00194644,96770.0,96769.0,0.33672692]
[1736861850203,0.00194644,96770.0,96727.0,0.09120121]
[1736861850204,0.00194644,96770.0,96751.0,0.082]
[1736861850411,0.00194644,96770.0,96752.0,0.10422692]
[1736861850626,0.02429183,96769.0,96728.0,0.082]
[1736861850766,0.27851875,96769.0,96729.0,0.10422692]
[1736861850973,0.173,96767.0,96722.0,0.09120121]
[1736861851174,0.15,96759.0,96722.0,0.09120121]
[1736861851417,0.15,96757.0,96722.0,0.10422692]
[1736861851587,0.15,96755.0,96722.0,0.10422692]
[1736861851788,0.023,96752.0,96722.0,0.11464961]
[1736861851988,0.023,96750.0,96722.0,0.01042269]
[1736861852218,0.023,96748.0,96710.0,0.082]
[1736861852381,0.023,96748.0,96702.0,0.0461564]
[1736861852382,0.173,96746.0,96711.0,0.10422692]
[1736861852580,0.15,96763.0,96712.0,0.00103383]
[1736861852885,0.023,96760.0,96713.0,0.10422692]
[1736861853041,0.173,96758.0,96713.0,0.10422692]
[1736861853411,0.16071483,96757.0,96720.0,0.28338785]
[1736861853609,0.01336,96756.0,96730.0,0.28338785]
[1736861853934,0.01336,96756.0,96721.0,0.10526054]
[1736861853935,0.00194644,96770.0,96741.0,0.15]
[1736861854120,0.00194644,96770.0,96750.0,0.28338785]
[1736861854324,0.00194644,96770.0,96742.0,0.10526031]
[1736861854325,0.00194644,96770.0,96760.0,0.28338785]
[1736861854528,0.00194644,96770.0,96761.0,0.25526013]
[1736861854865,0.01515761,96798.0,96779.0,0.09471431]